[Event "EYCC Open-U16 2019"]
[Site "Bratislava"]
[Date "2019.08.02"]
[Round "1.14"]
[White "Torngren, Gustav"]
[Black "Degraeve, Remy"]
[Result "1-0"]
[ECO "E32"]
[WhiteElo "2109"]
[BlackElo "2349"]
[Annotator "NA"]
[PlyCount "191"]
[EventDate "2019.08.02"]
[EventType "swiss"]
[EventCountry "SVK"]
[SourceTitle "playchess.com"]
[Source "ChessBase"]
[SourceQuality "1"]
[TimeControl "40/5400+30:1800+30"]

1. d4 {[%emt 0:00:00]} Nf6 {[%emt 0:00:00]} 2. c4 {[%emt 0:00:00]} e6 {[%emt 0:00:00]} 3. Nc3 {[%emt 0:00:00]} Bb4 {[%emt 0:00:00]} 4. Qc2 {[%emt 0:00:07]} O-O {[%emt 0:00:22]} 5. Nf3 {[%emt 0:00:07]} d5 {[%emt 0:00:18]} 6. Bg5 {[%emt 0:00:20]} h6 {[%emt 0:02:51]} 7. Bh4 {[%emt 0:00:16]} g5 {[%emt 0:04:49]} 8. Bg3 {[%emt 0:01:53]} c5 {[%emt 0:01:53]} 9. e3 {[%emt 0:02:07]} Nc6 {[%emt 0:07:08]} 10. Be2 {[%emt 0:09:36]} cxd4 {[%emt 0:01:13]} 11. exd4 {[%emt 0:00:16]} Ne4 {[%emt 0:13:51]} 12. O-O {[%emt 0:08:35]} Nxg3 {[%emt 0:10:52]} 13. hxg3 {[%emt 0:00:26]} Be7 {[%emt 0:03:28]} 14. Rad1 {[%emt 0:03:55]} Bf6 {[%emt 0:04:20]} 15. Rfe1 {[%emt 0:10:30]} b6 {[%emt 0:06:03]} 16. Bf1 {[%emt 0:06:23]} Bb7 {[%emt 0:01:11]} 17. Ne5 {[%emt 0:10:28]} Kg7 {[%emt 0:02:53]} 18. cxd5 {[%emt 0:08:13]} exd5 {[%emt 0:00:46]} 19. Bb5 {[%emt 0:01:21]} Rc8 {[%emt 0:02:49]} 20. Qf5 {[%emt 0:08:03]} Ne7 {[%emt 0:06:44]} 21. Qf3 {[%emt 0:01:20]} a6 {[%emt 0:06:45]} 22. Ba4 {[%emt 0:07:22]} Rc7 {[%emt 0:04:23]} 23. Ng4 {[%emt 0:02:02]} Ng8 {[%emt 0:01:06]} 24. Ne3 {[%emt 0:00:20]} Ne7 {[%emt 0:00:32]} 25. Bc2 {[%emt 0:01:47]} Qd6 {[%emt 0:00:44]} 26. Qf5 {[%emt 0:01:37]} Rh8 {[%emt 0:00:28]} 27. Qd3 {[%emt 0:00:39]} Bc8 {[%emt 0:00:26]} 28. Re2 {[%emt 0:01:22]} h5 {[%emt 0:01:33]} 29. Bb3 {[%emt 0:02:56]} Be6 {[%emt 0:02:43]} 30. Qxa6 {[%emt 0:02:58]} Rcc8 {[%emt 0:00:03]} 31. Ncxd5 {[%emt 0:01:38]} Nxd5 {[%emt 0:02:51]} 32. Bxd5 {[%emt 0:00:04]} h4 {[%emt 0:01:45]} 33. Bxe6 {[%emt 0:02:25]} fxe6 {[%emt 0:00:01]} 34. g4 {[%emt 0:01:13]} h3 {[%emt 0:02:09]} 35. Red2 {[%emt 0:03:04]} hxg2 {[%emt 0:00:45]} 36. Qb7+ {[%emt 0:00:01]} Rc7 {[%emt 0:00:46]} 37. Qxg2 {[%emt 0:00:03]} Qf4 {[%emt 0:00:49]} 38. d5 {[%emt 0:01:05]} Rd8 {[%emt 0:00:20]} 39. Qh2 {[%emt 0:01:23]} Qxh2+ {[%emt 0:04:02]} 40. Kxh2 {[%emt 0:00:00]} Rcd7 {[%emt 0:00:00]} 41. Kg2 {[%emt 0:03:43]} exd5 {[%emt 0:06:51]} 42. Rxd5 {[%emt 0:05:57]} Rxd5 {[%emt 0:00:13]} 43. Rxd5 {[%emt 0:00:27]} Ra8 {[%emt 0:00:42]} 44. Rb5 {[%emt 0:01:29]} Rxa2 {[%emt 0:00:19]} 45. Nc4 {[%emt 0:00:35]} Ra4 {[%emt 0:01:45]} 46. b3 {[%emt 0:04:44]} Ra2 {[%emt 0:00:02]} 47. Nxb6 {[%emt 0:01:25]} Bd4 {[%emt 0:00:15]} 48. Rxg5+ {[%emt 0:00:26]} Kh6 {[%emt 0:00:04]} 49. Rf5 {[%emt 0:00:30]} Rb2 {[%emt 0:02:12]} 50. Rf3 {[%emt 0:00:34]} Kg5 {[%emt 0:00:50]} 51. Nc4 {[%emt 0:00:23]} Rb1 {[%emt 0:02:15]} 52. Rd3 {[%emt 0:00:51]} Ba7 {[%emt 0:01:59]} 53. Kf3 {[%emt 0:01:39]} Rh1 {[%emt 0:01:33]} 54. Rd5+ {[%emt 0:00:19]} Kg6 {[%emt 0:00:12]} 55. Rb5 {[%emt 0:00:55]} Rh3+ {[%emt 0:00:20]} 56. Kg2 {[%emt 0:00:21]} Rc3 {[%emt 0:00:23]} 57. Nd2 {[%emt 0:03:43]} Rd3 {[%emt 0:03:27]} 58. Ne4 {[%emt 0:01:15]} Rd4 {[%emt 0:00:10]} 59. Kf3 {[%emt 0:00:10]} Rd3+ {[%emt 0:00:42]} 60. Ke2 {[%emt 0:00:03]} Rd4 {[%emt 0:00:09]} 61. f3 {[%emt 0:00:16]} Rd7 {[%emt 0:00:10]} 62. b4 {[%emt 0:01:16]} Rf7 {[%emt 0:00:47]} 63. Rg5+ {[%emt 0:01:02]} Kh6 {[%emt 0:00:03]} 64. Rd5 {[%emt 0:00:26]} Rb7 {[%emt 0:00:10]} 65. b5 {[%emt 0:00:12]} Bb8 {[%emt 0:00:09]} 66. Kd3 {[%emt 0:00:47]} Kg6 {[%emt 0:00:15]} 67. Kc4 {[%emt 0:00:30]} Rf7 {[%emt 0:00:03]} 68. Rg5+ {[%emt 0:00:16]} Kh6 {[%emt 0:00:01]} 69. Rf5 {[%emt 0:00:16]} Rc7+ {[%emt 0:00:03]} 70. Nc5 {[%emt 0:00:23]} Ba7 {[%emt 0:00:11]} 71. Kb4 {[%emt 0:00:48]} Kg6 {[%emt 0:00:02]} 72. Nd3 {[%emt 0:02:03]} Be3 {[%emt 0:00:18]} 73. Ne5+ {[%emt 0:00:22]} Kg7 {[%emt 0:00:20]} 74. Nc6 {[%emt 0:00:08]} Rd7 {[%emt 0:00:14]} 75. Kc4 {[%emt 0:00:48]} Rd1 {[%emt 0:00:31]} 76. Rd5 {[%emt 0:00:39]} Rc1+ {[%emt 0:00:22]} 77. Kd3 Bg1 {[%emt 0:00:39]} 78. Ke4 {[%emt 0:01:55]} Kf6 {[%emt 0:00:04]} 79. Rd6+ {[%emt 0:00:29]} Kg5 {[%emt 0:00:03]} 80. Rd5+ {[%emt 0:00:18]} Kf6 {[%emt 0:00:07]} 81. Rf5+ {[%emt 0:00:55]} Kg6 {[%emt 0:00:19]} 82. Kd5 {[%emt 0:01:11]} Rd1+ {[%emt 0:00:42]} 83. Ke6 {[%emt 0:00:12]} Bh2 {[%emt 0:00:03]} 84. Ne5+ {[%emt 0:00:11]} Kg7 {[%emt 0:00:03]} 85. Rg5+ {[%emt 0:01:02]} Kh6 {[%emt 0:00:21]} 86. Rh5+ {[%emt 0:00:18]} Kg7 {[%emt 0:00:02]} 87. Rxh2 {[%emt 0:00:13]} Rb1 {[%emt 0:00:01]} 88. Rc2 {[%emt 0:00:28]} Rxb5 {[%emt 0:00:03]} 89. Rc7+ {[%emt 0:00:18]} Kh6 {[%emt 0:00:04]} 90. Rc6 {[%emt 0:01:34]} Kg7 {[%emt 0:00:05]} 91. Kf5 {[%emt 0:00:11]} Rb3 {[%emt 0:00:08]} 92. Kg5 {[%emt 0:00:09]} Rb5 {[%emt 0:00:05]} 93. f4 {[%emt 0:00:10]} Ra5 {[%emt 0:00:04]} 94. Rc7+ {[%emt 0:00:13]} Kg8 {[%emt 0:00:02]} 95. Kh6 {[%emt 0:01:01]} Kf8 {[%emt 0:00:17]} 96. Rc8+ {[%emt 0:00:10]} 1-0

[Event "EYCC Open-U16 2019"]
[Site "Bratislava"]
[Date "2019.08.02"]
[Round "1.15"]
[White "Pogosyan, Stefan"]
[Black "Barak, David"]
[Result "1-0"]
[ECO "A59"]
[WhiteElo "2334"]
[BlackElo "2015"]
[Annotator "NA"]
[PlyCount "73"]
[EventDate "2019.08.02"]
[EventType "swiss"]
[EventCountry "SVK"]
[SourceTitle "playchess.com"]
[Source "ChessBase"]
[SourceQuality "1"]
[TimeControl "40/5400+30:1800+30"]

1. d4 {[%emt 0:00:00]} Nf6 {[%emt 0:00:00]} 2. c4 {[%emt 0:00:00]} c5 {[%emt 0:00:00]} 3. d5 {[%emt 0:00:00]} b5 {[%emt 0:00:00]} 4. cxb5 {[%emt 0:00:00]} a6 {[%emt 0:00:00]} 5. bxa6 {[%emt 0:00:02]} g6 {[%emt 0:00:00]} 6. Nc3 {[%emt 0:00:12]} Bxa6 {[%emt 0:00:07]} 7. e4 {[%emt 0:00:10]} Bxf1 {[%emt 0:00:06]} 8. Kxf1 {[%emt 0:00:10]} d6 {[%emt 0:00:09]} 9. Nf3 {[%emt 0:00:11]} Bg7 {[%emt 0:00:10]} 10. g3 {[%emt 0:00:09]} O-O {[%emt 0:00:30]} 11. Kg2 {[%emt 0:00:08]} Qb6 {[%emt 0:02:40]} 12. a4 {[%emt 0:06:03]} Na6 {[%emt 0:02:12]} 13. a5 {[%emt 0:11:05]} Qb7 {[%emt 0:19:43]} 14. Nd2 {[%emt 0:00:17]} Nd7 {[%emt 0:02:35]} 15. Nc4 {[%emt 0:01:50]} Nb4 {[%emt 0:15:44]} 16. Qe2 {[%emt 0:26:08]} Kh8 {[%emt 0:13:24]} 17. h4 {[%emt 0:06:16]} Nf6 {[%emt 0:14:44]} 18. Bg5 {[%emt 0:14:37]} Ra6 {[%emt 0:05:37]} 19. h5 {[%emt 0:03:35]} Kg8 {[%emt 0:08:06]} 20. hxg6 {[%emt 0:08:00]} fxg6 {[%emt 0:01:10]} 21. Rad1 {[%emt 0:00:49]} Rf7 {[%emt 0:06:58]} 22. f4 Nh5 {[%emt 0:03:17]} 23. e5 {[%emt 0:10:06]} Qc8 {[%emt 0:02:29]} 24. e6 {[%emt 0:01:55]} Rf5 {[%emt 0:01:36]} 25. Rxh5 {[%emt 0:00:58]} gxh5 {[%emt 0:00:14]} 26. Qe4 {[%emt 0:02:11]} Qf8 {[%emt 0:00:56]} 27. Bxe7 {[%emt 0:00:12]} Qxe7 {[%emt 0:00:26]} 28. Qxf5 {[%emt 0:00:08]} h4 {[%emt 0:00:29]} 29. g4 {[%emt 0:01:34]} Ra8 {[%emt 0:00:34]} 30. Qf7+ {[%emt 0:00:46]} Qxf7 {[%emt 0:00:10]} 31. exf7+ {[%emt 0:00:03]} Kxf7 {[%emt 0:00:18]} 32. Nxd6+ {[%emt 0:00:13]} Kf8 {[%emt 0:00:28]} 33. Nb7 {[%emt 0:00:35]} Ra7 {[%emt 0:00:53]} 34. Nxc5 {[%emt 0:00:27]} Rxa5 {[%emt 0:00:31]} 35. Ne6+ {[%emt 0:00:21]} Kf7 {[%emt 0:00:19]} 36. Nxg7 {[%emt 0:01:00]} Kxg7 {[%emt 0:00:12]} 37. Kh3 {[%emt 0:00:11]} 1-0

[Event "EYCC Open-U16 2019"]
[Site "Bratislava"]
[Date "2019.08.02"]
[Round "1.16"]
[White "Lomandong, Marc-Antoine"]
[Black "Suvorov, Alexander"]
[Result "0-1"]
[ECO "A46"]
[WhiteElo "2073"]
[BlackElo "2333"]
[Annotator "NA"]
[PlyCount "78"]
[EventDate "2019.08.02"]
[EventType "swiss"]
[EventCountry "SVK"]
[SourceTitle "playchess.com"]
[Source "ChessBase"]
[SourceQuality "1"]
[TimeControl "40/5400+30:1800+30"]

1. d4 {[%emt 0:00:00]} Nf6 {[%emt 0:00:00]} 2. Nf3 {[%emt 0:00:00]} e6 {[%emt 0:00:00]} 3. b3 {[%emt 0:00:34]} b6 {[%emt 0:00:32]} 4. Bb2 {[%emt 0:00:28]} Bb7 {[%emt 0:00:25]} 5. Nbd2 {[%emt 0:01:36]} d5 {[%emt 0:01:04]} 6. e3 {[%emt 0:00:06]} Bd6 {[%emt 0:00:29]} 7. Ne5 {[%emt 0:03:09]} O-O {[%emt 0:01:32]} 8. f4 {[%emt 0:04:25]} c5 {[%emt 0:01:15]} 9. Bd3 {[%emt 0:07:41]} Nc6 {[%emt 0:01:26]} 10. c3 {[%emt 0:06:54]} Ne7 {[%emt 0:10:12]} 11. Qf3 {[%emt 0:06:11]} Qc7 {[%emt 0:11:19]} 12. g4 {[%emt 0:11:57]} c4 {[%emt 0:07:28]} 13. Bc2 {[%emt 0:11:30]} b5 {[%emt 0:04:15]} 14. Rc1 {[%emt 0:14:06]} cxb3 {[%emt 0:09:13]} 15. axb3 {[%emt 0:00:38]} a5 {[%emt 0:02:20]} 16. Rg1 {[%emt 0:12:03]} a4 {[%emt 0:13:09]} 17. b4 {[%emt 0:03:38]} Rfc8 {[%emt 0:03:21]} 18. Rg3 {[%emt 0:02:11]} a3 {[%emt 0:04:15]} 19. Ba1 {[%emt 0:00:18]} Ne4 {[%emt 0:03:13]} 20. Rh3 {[%emt 0:02:58]} Ng6 {[%emt 0:01:36]} 21. Nxg6 {[%emt 0:05:01]} hxg6 {[%emt 0:00:55]} 22. Nxe4 {[%emt 0:01:00]} dxe4 {[%emt 0:00:04]} 23. Qf2 {[%emt 0:00:19]} f6 {[%emt 0:06:10]} 24. Qh4 {[%emt 0:03:36]} Kf7 {[%emt 0:01:11]} 25. f5 {[%emt 0:00:13]} Rh8 {[%emt 0:01:21]} 26. fxe6+ {[%emt 0:00:11]} Kxe6 {[%emt 0:00:46]} 27. Qxh8 {[%emt 0:01:08]} Rxh8 {[%emt 0:00:02]} 28. Rxh8 {[%emt 0:00:04]} Bxh2 {[%emt 0:01:58]} 29. Kd2 {[%emt 0:00:13]} Qg3 {[%emt 0:02:35]} 30. Bb3+ {[%emt 0:01:40]} Bd5 {[%emt 0:00:50]} 31. Bxd5+ {[%emt 0:00:29]} Kxd5 {[%emt 0:00:01]} 32. Re1 {[%emt 0:00:11]} Bg1 {[%emt 0:00:37]} 33. Rc8 {[%emt 0:00:44]} Qg2+ {[%emt 0:02:12]} 34. Re2 {[%emt 0:00:25]} Qf1 {[%emt 0:00:26]} 35. c4+ {[%emt 0:00:27]} bxc4 {[%emt 0:00:35]} 36. Rc5+ {[%emt 0:01:13]} Kd6 {[%emt 0:00:15]} 37. Rxc4 {[%emt 0:00:15]} Qxa1 {[%emt 0:00:13]} 38. Rc1 {[%emt 0:00:34]} Qb2+ {[%emt 0:00:24]} 39. Kd1 {[%emt 0:00:10]} Qb3+ {[%emt 0:00:12]} 0-1

[Event "EYCC Open-U16 2019"]
[Site "Bratislava"]
[Date "2019.08.02"]
[Round "1.17"]
[White "Milosevic, Milos"]
[Black "Sismeiro, Miguel"]
[Result "1/2-1/2"]
[ECO "B23"]
[WhiteElo "2312"]
[BlackElo "2103"]
[Annotator "NA"]
[PlyCount "124"]
[EventDate "2019.08.02"]
[EventType "swiss"]
[EventCountry "SVK"]
[SourceTitle "playchess.com"]
[Source "ChessBase"]
[SourceQuality "1"]
[TimeControl "40/5400+30:1800+30"]

1. e4 c5 2. Nc3 a6 3. Nge2 e6 4. g3 Nc6 5. Bg2 b5 6. O-O Bb7 7. d3 d6 8. f4 Be7 9. f5 e5 10. Nd5 Nf6 11. Nxe7 Qxe7 12. Bg5 Qc7 13. Nc3 Nd4 14. Bxf6 gxf6 15. a4 b4 16. Nb1 Ke7 17. c3 Nc6 18. Qh5 Rag8 19. Nd2 Qd8 20. Qh6 Qf8 21. Qxf8+ Rxf8 22. Rac1 bxc3 23. bxc3 Nb8 24. Rb1 Bc6 25. Nc4 Nd7 26. Na5 Ba8 27. Bf3 Rb8 28. Kf2 Rb6 29. Nc4 Rxb1 30. Rxb1 Bc6 31. Na5 Bxa4 32. Ra1 Nb6 33. Nc4 Nxc4 34. Rxa4 Nd2 35. Rxa6 Rd8 36. Bh5 Rd7 37. Rb6 c4 38. Ke3 Nb3 39. Rb4 Na5 40. dxc4 Rc7 41. Be2 Nb7 42. Ra4 Nc5 43. Ra8 Rb7 44. Bh5 Rb3 45. Ra7+ Rb7 46. Rxb7+ Nxb7 47. Bd1 Nc5 48. Bc2 h6 49. Ke2 Ke8 50. Ke3 Ke7 51. Bd1 Kf8 52. h4 Ke7 53. Bc2 Kf8 54. Ke2 Ke8 55. Kf3 Kf8 56. Kg4 Kg8 57. Kh5 Kh7 58. g4 Kg7 59. g5 fxg5 60. hxg5 hxg5 61. Kxg5 f6+ 62. Kg4 Kh6 1/2-1/2

[Event "EYCC Open-U16 2019"]
[Site "Bratislava"]
[Date "2019.08.02"]
[Round "1.18"]
[White "Vadila, Ondrej"]
[Black "Dudin, Gleb"]
[Result "0-1"]
[ECO "B06"]
[WhiteElo "2048"]
[BlackElo "2283"]
[Annotator "ChessBase"]
[PlyCount "186"]
[EventDate "2019.08.02"]
[EventType "swiss"]
[EventCountry "SVK"]
[SourceTitle "playchess.com"]
[Source "ChessBase"]
[SourceQuality "1"]
[TimeControl "40/5400+30:1800+30"]

1. d4 {[%emt 0:00:00]} g6 {[%emt 0:00:00]} 2. e4 {[%emt 0:00:00]} d6 {[%emt 0:00:26]} 3. Nc3 {[%emt 0:00:09]} Bg7 {[%emt 0:01:04]} 4. Be3 {[%emt 0:00:36]} a6 {[%emt 0:00:07]} 5. a4 {[%emt 0:03:39]} b6 {[%emt 0:08:23]} 6. g3 {[%emt 0:03:18]} Bb7 {[%emt 0:00:28]} 7. Bg2 {[%emt 0:00:10]} Nd7 {[%emt 0:01:21]} 8. Nge2 {[%emt 0:00:43]} Ngf6 {[%emt 0:05:03]} 9. O-O {[%emt 0:07:45]} e5 {[%emt 0:00:20]} 10. h3 {[%emt 0:00:47]} O-O {[%emt 0:00:37]} 11. d5 {[%emt 0:14:58]} Re8 {[%emt 0:17:25]} 12. Qd2 {[%emt 0:02:45]} a5 {[%emt 0:08:24]} 13. Rad1 {[%emt 0:09:42]} Nc5 {[%emt 0:04:42]} 14. b3 {[%emt 0:05:50]} Qd7 {[%emt 0:05:01]} 15. Rfe1 {[%emt 0:03:49]} Rad8 {[%emt 0:02:49]} 16. Bh6 {[%emt 0:12:34]} Ba6 {[%emt 0:07:00]} 17. g4 {[%emt 0:04:39]} Qe7 {[%emt 0:04:11]} 18. Ng3 {[%emt 0:03:44]} Bxh6 {[%emt 0:01:50]} 19. Qxh6 {[%emt 0:00:08]} Qf8 {[%emt 0:00:04]} 20. Qe3 {[%emt 0:05:47]} Nfd7 {[%emt 0:01:45]} 21. Bf1 {[%emt 0:00:54]} Qe7 {[%emt 0:01:30]} 22. Bxa6 {[%emt 0:04:49]} Nxa6 {[%emt 0:00:25]} 23. Nb5 {[%emt 0:00:35]} Rf8 {[%emt 0:04:22]} 24. Kh2 {[%emt 0:01:25]} Qh4 {[%emt 0:08:24]} 25. Qe2 {[%emt 0:02:12]} Ra8 {[%emt 0:02:57]} 26. Qf3 {[%emt 0:03:26]} Kh8 {[%emt 0:02:32]} 27. Qe3 {[%emt 0:02:24]} Rae8 {[%emt 0:02:36]} 28. Qe2 {[%emt 0:00:57]} Ndc5 {[%emt 0:01:32]} 29. Qe3 {[%emt 0:01:37]} Re7 {[%emt 0:00:48]} 30. Rd2 {[%emt 0:01:16]} Nd7 {[%emt 0:01:55]} 31. Qe2 {[%emt 0:00:28]} Ra8 {[%emt 0:00:33]} 32. Qf3 {[%emt 0:01:12]} Qg5 {[%emt 0:02:19]} 33. Qe3 {[%emt 0:00:57]} Qf4 {[%emt 0:01:17]} 34. f3 {[%emt 0:01:36]} Qf6 {[%emt 0:01:36]} 35. Rg1 {[%emt 0:00:44]} Qh4 {[%emt 0:02:07]} 36. Re1 {[%emt 0:00:54]} Nf6 {[%emt 0:00:39]} 37. Rg1 {[%emt 0:01:01]} h6 {[%emt 0:01:08]} 38. Rdg2 {[%emt 0:00:49]} Nc5 {[%emt 0:00:44]} 39. Ne2 {[%emt 0:00:24]} Nh7 {[%emt 0:00:34]} 40. Rg3 {[%emt 0:00:00]} Ng5 {[%emt 0:00:00]} 41. Qc1 {[%emt 0:12:54]} Rf8 {[%emt 0:03:32]} 42. Qf1 {[%emt 0:01:12]} Na6 {[%emt 0:13:26]} 43. Na3 {[%emt 0:06:03]} Nb4 {[%emt 0:03:57]} 44. Nc4 {[%emt 0:05:42]} f5 {[%emt 0:04:32]} 45. gxf5 {[%emt 0:02:05]} gxf5 {[%emt 0:00:11]} 46. exf5 {[%emt 0:02:23]} Nxd5 {[%emt 0:00:53]} 47. Rg4 {[%emt 0:00:48]} Qh5 {[%emt 0:00:09]} 48. Ng3 {[%emt 0:01:00]} Qf7 {[%emt 0:01:56]} 49. Ne4 {[%emt 0:01:26]} Qxf5 {[%emt 0:03:03]} 50. Nxg5 {[%emt 0:00:53]} hxg5 {[%emt 0:00:03]} 51. Rxg5 {[%emt 0:00:13]} Qf4+ {[%emt 0:00:57]} 52. R1g3 {[%emt 0:00:23]} Nf6 {[%emt 0:00:41]} 53. Qe2 {[%emt 0:01:19]} Rg8 {[%emt 0:01:39]} 54. Rxg8+ {[%emt 0:00:28]} Nxg8 {[%emt 0:00:01]} 55. Qe4 {[%emt 0:00:55]} Qxe4 {[%emt 0:00:29]} 56. fxe4 {[%emt 0:00:05]} Nf6 {[%emt 0:00:03]} 57. Nd2 {[%emt 0:00:26]} Nh5 {[%emt 0:01:37]} 58. Rg4 {[%emt 0:01:02]} Rf7 {[%emt 0:01:01]} 59. Kg2 {[%emt 0:00:46]} Nf4+ {[%emt 0:00:06]} 60. Kg3 {[%emt 0:00:13]} Ne2+ {[%emt 0:00:37]} 61. Kg2 {[%emt 0:00:06]} Nd4 {[%emt 0:00:51]} 62. c3 {[%emt 0:00:14]} Ne2 {[%emt 0:01:01]} 63. c4 {[%emt 0:01:05]} Rh7 {[%emt 0:00:49]} 64. h4 {[%emt 0:00:23]} Rf7 {[%emt 0:00:04]} 65. Nf3 {[%emt 0:00:45]} Nf4+ {[%emt 0:01:00]} 66. Kg3 {[%emt 0:00:34]} Nh5+ {[%emt 0:00:09]} 67. Kg2 {[%emt 0:00:07]} Nf6 {[%emt 0:00:58]} 68. Ng5 {[%emt 0:00:36]} Rg7 {[%emt 0:00:43]} 69. Rg3 {[%emt 0:00:28]} Kg8 {[%emt 0:00:32]} 70. Kf3 {[%emt 0:00:38]} Nh5 {[%emt 0:00:15]} 71. Rg1 {[%emt 0:00:49]} Nf4 {[%emt 0:00:05]} 72. Rg3 {[%emt 0:00:28]} Kf8 {[%emt 0:00:23]} 73. Kg4 {[%emt 0:00:37]} Ke7 {[%emt 0:00:22]} 74. h5 {[%emt 0:00:27]} Rg8 {[%emt 0:01:19]} 75. h6 {[%emt 0:00:36]} Kf6 {[%emt 0:00:31]} 76. Kh4 {[%emt 0:00:07]} Rh8 {[%emt 0:00:34]} 77. h7 {[%emt 0:00:21]} Ne6 {[%emt 0:00:27]} 78. Rf3+ Ke7 79. Nxe6 {[%emt 0:01:34]} Rxh7+ {[%emt 0:00:17]} 80. Kg5 {[%emt 0:00:07]} Kxe6 {[%emt 0:00:07]} 81. Kg6 {[%emt 0:00:50]} Rh4 {[%emt 0:00:23]} 82. Rf6+ {[%emt 0:00:11]} Kd7 {[%emt 0:00:04]} 83. Rf7+ {[%emt 0:00:54]} Kc6 {[%emt 0:00:05]} 84. Kf5 {[%emt 0:00:08]} Rf4+ {[%emt 0:00:09]} 85. Ke6 {[%emt 0:00:05]} Rxf7 {[%emt 0:00:54]} 86. Kxf7 {[%emt 0:00:04]} Kc5 {[%emt 0:00:04]} 87. Ke6 {[%emt 0:00:06]} Kd4 {[%emt 0:00:33]} 88. Kd7 {[%emt 0:00:05]} c5 {[%emt 0:00:22]} 89. Kc6 {[%emt 0:00:07]} Kxe4 {[%emt 0:00:04]} 90. Kxb6 {[%emt 0:00:04]} Kd4 {[%emt 0:00:09]} 91. Kxa5 {[%emt 0:00:04]} e4 {[%emt 0:00:05]} 92. Kb6 {[%emt 0:00:03]} e3 {[%emt 0:00:07]} 93. a5 {[%emt 0:00:04]} e2 {[%emt 0:00:04]} 0-1

[Event "EYCC Open-U16 2019"]
[Site "Bratislava"]
[Date "2019.08.02"]
[Round "1.19"]
[White "Stefansson, Vignir Vatnar"]
[Black "Dabic, Stjepan"]
[Result "1-0"]
[ECO "E73"]
[WhiteElo "2293"]
[BlackElo "2102"]
[Annotator "NA"]
[PlyCount "71"]
[EventDate "2019.08.02"]
[EventType "swiss"]
[EventCountry "SVK"]
[SourceTitle "playchess.com"]
[Source "ChessBase"]
[SourceQuality "1"]
[TimeControl "40/5400+30:1800+30"]

1. c4 {[%emt 0:00:00]} g6 {[%emt 0:00:00]} 2. d4 {[%emt 0:00:17]} Nf6 {[%emt 0:00:03]} 3. Nc3 {[%emt 0:00:09]} Bg7 {[%emt 0:00:14]} 4. e4 {[%emt 0:00:07]} d6 {[%emt 0:00:14]} 5. Be2 {[%emt 0:00:19]} Nbd7 {[%emt 0:00:37]} 6. Bg5 {[%emt 0:02:18]} O-O {[%emt 0:02:51]} 7. Qd2 {[%emt 0:00:42]} e5 {[%emt 0:14:46]} 8. d5 {[%emt 0:01:14]} a5 {[%emt 0:00:17]} 9. f3 {[%emt 0:02:14]} Nc5 {[%emt 0:01:16]} 10. Bd1 {[%emt 0:04:54]} h6 {[%emt 0:12:00]} 11. Bxh6 {[%emt 0:06:20]} Nfxe4 {[%emt 0:00:30]} 12. fxe4 {[%emt 0:08:10]} Qh4+ {[%emt 0:00:08]} 13. g3 {[%emt 0:01:29]} Qxh6 {[%emt 0:00:08]} 14. Bf3 {[%emt 0:03:41]} f5 {[%emt 0:02:52]} 15. Qxh6 {[%emt 0:01:25]} Bxh6 {[%emt 0:00:06]} 16. Ke2 {[%emt 0:00:03]} Bd7 {[%emt 0:01:44]} 17. h3 {[%emt 0:05:27]} Rf6 {[%emt 0:03:57]} 18. Bg2 {[%emt 0:03:25]} fxe4 {[%emt 0:03:22]} 19. Nxe4 {[%emt 0:03:10]} Nxe4 {[%emt 0:00:13]} 20. Bxe4 {[%emt 0:00:05]} Raf8 {[%emt 0:00:28]} 21. Nf3 {[%emt 0:01:49]} Bf5 {[%emt 0:02:44]} 22. Bxf5 {[%emt 0:00:19]} gxf5 {[%emt 0:00:12]} 23. Rhg1 {[%emt 0:00:43]} Kh7 {[%emt 0:05:29]} 24. Raf1 {[%emt 0:00:35]} c5 {[%emt 0:05:40]} 25. g4 {[%emt 0:04:32]} fxg4 {[%emt 0:03:27]} 26. hxg4 {[%emt 0:02:41]} Rf4 {[%emt 0:00:48]} 27. g5 {[%emt 0:02:12]} Bg7 {[%emt 0:00:14]} 28. g6+ {[%emt 0:02:20]} Kg8 {[%emt 0:00:05]} 29. Ng5 {[%emt 0:05:19]} Rxc4 {[%emt 0:30:27]} 30. Rf7 {[%emt 0:03:20]} Rf4 {[%emt 0:04:09]} 31. Rxb7 {[%emt 0:01:48]} Rb4 {[%emt 0:01:14]} 32. Rxb4 {[%emt 0:00:39]} axb4 {[%emt 0:00:28]} 33. Ne6 {[%emt 0:00:08]} Rf5 {[%emt 0:01:00]} 34. a4 {[%emt 0:01:54]} bxa3 {[%emt 0:00:52]} 35. bxa3 {[%emt 0:00:08]} e4 {[%emt 0:00:07]} 36. Rb1 {[%emt 0:00:27]} 1-0

[Event "EYCC Open-U16 2019"]
[Site "Bratislava"]
[Date "2019.08.02"]
[Round "1.20"]
[White "Sandor, Martin"]
[Black "Tsoi, Dmitry"]
[Result "1/2-1/2"]
[ECO "B01"]
[WhiteElo "2035"]
[BlackElo "2314"]
[Annotator "NA"]
[PlyCount "89"]
[EventDate "2019.08.02"]
[EventType "swiss"]
[EventCountry "SVK"]
[SourceTitle "playchess.com"]
[Source "ChessBase"]
[SourceQuality "1"]
[TimeControl "40/5400+30:1800+30"]

1. e4 {[%emt 0:00:00]} d5 {[%emt 0:00:00]} 2. exd5 {[%emt 0:00:00]} Qxd5 {[%emt 0:00:00]} 3. Nc3 {[%emt 0:00:20]} Qa5 {[%emt 0:00:00]} 4. Nf3 {[%emt 0:01:03]} Bg4 {[%emt 0:00:04]} 5. h3 {[%emt 0:00:41]} Bxf3 {[%emt 0:00:08]} 6. Qxf3 {[%emt 0:00:16]} c6 {[%emt 0:00:05]} 7. Bc4 {[%emt 0:05:21]} Nf6 {[%emt 0:00:06]} 8. O-O {[%emt 0:01:07]} e6 {[%emt 0:00:23]} 9. Re1 {[%emt 0:03:25]} Be7 {[%emt 0:00:33]} 10. d4 {[%emt 0:06:58]} Nbd7 {[%emt 0:00:35]} 11. Be3 {[%emt 0:05:08]} O-O {[%emt 0:00:14]} 12. Rad1 {[%emt 0:01:20]} Nd5 {[%emt 0:13:48]} 13. Nxd5 {[%emt 0:03:41]} cxd5 {[%emt 0:02:57]} 14. Bb3 {[%emt 0:02:45]} b5 {[%emt 0:00:48]} 15. Bd2 {[%emt 0:01:25]} Qd8 {[%emt 0:02:51]} 16. Qe2 {[%emt 0:01:12]} Bf6 {[%emt 0:18:07]} 17. Bb4 {[%emt 0:05:25]} Qb6 {[%emt 0:03:39]} 18. Bxf8 {[%emt 0:01:39]} Nxf8 {[%emt 0:00:10]} 19. c3 {[%emt 0:01:38]} Ng6 {[%emt 0:02:36]} 20. Bc2 {[%emt 0:07:16]} Ne7 {[%emt 0:00:31]} 21. a3 {[%emt 0:03:01]} g6 {[%emt 0:04:29]} 22. Bd3 {[%emt 0:06:48]} Rb8 {[%emt 0:00:09]} 23. Kh1 {[%emt 0:03:13]} Nc8 {[%emt 0:00:27]} 24. Qf3 {[%emt 0:01:35]} Kg7 {[%emt 0:04:22]} 25. g3 {[%emt 0:02:37]} Nd6 {[%emt 0:00:58]} 26. h4 {[%emt 0:01:16]} h5 {[%emt 0:02:02]} 27. Kg2 {[%emt 0:04:04]} a5 {[%emt 0:05:04]} 28. Qf4 {[%emt 0:02:56]} Qd8 {[%emt 0:10:01]} 29. Ra1 {[%emt 0:04:47]} Rb6 {[%emt 0:03:25]} 30. Rh1 {[%emt 0:03:11]} Kf8 {[%emt 0:04:46]} 31. g4 {[%emt 0:02:19]} Ke7 {[%emt 0:01:29]} 32. g5 {[%emt 0:01:19]} Bg7 {[%emt 0:00:24]} 33. Rhe1 {[%emt 0:00:13]} Qb8 {[%emt 0:03:22]} 34. Re2 {[%emt 0:02:44]} Kd7 {[%emt 0:00:45]} 35. Qe3 {[%emt 0:02:37]} Bf8 {[%emt 0:03:04]} 36. f3 {[%emt 0:03:06]} Nc8 {[%emt 0:01:25]} 37. Qe5 {[%emt 0:01:28]} Qxe5 {[%emt 0:00:18]} 38. Rxe5 {[%emt 0:01:30]} Bd6 {[%emt 0:00:09]} 39. Re2 {[%emt 0:00:04]} Ne7 {[%emt 0:00:08]} 40. a4 {[%emt 0:00:00]} b4 {[%emt 0:00:00]} 41. Rc2 {[%emt 0:03:26]} Rb8 {[%emt 0:05:01]} 42. Bb5+ {[%emt 0:01:56]} Kd8 {[%emt 0:00:23]} 43. Bd3 {[%emt 0:00:06]} Bf4 {[%emt 0:04:06]} 44. Kf2 {[%emt 0:04:44]} Nc8 {[%emt 0:07:36]} 45. Re2 {[%emt 0:02:08]} 1/2-1/2